bitfinex/quotes_SOLUSD_20251120
["timestamp","ask_amount","ask_price","bid_price","bid_amount"]
[1763606653188,0.66,142.81,142.78,4.12318902]
[1763606653396,1.68,142.8,142.76,4.12318902]
[1763606653792,2.34,142.8,142.76,4.12318902]
[1763606654005,2.34,142.8,142.76,4.80318902]
[1763606654207,1.68,142.8,142.78,4.12318902]
[1763606654396,1.68,142.8,142.79,0.68]
[1763606654593,8.68280112,142.8,142.79,0.68]
[1763606654799,8.68280112,142.8,142.77,0.68]
[1763606655005,8.68280112,142.8,142.78,4.12318902]
[1763606655898,8.68280112,142.8,142.78,4.80318902]
[1763606656409,0.66,142.86,142.79,4.80318902]
[1763606656625,1.68,142.85,142.81,4.12318902]
[1763606656906,1.68,142.85,142.81,4.80318902]
[1763606657312,19.80096,142.85,142.81,4.12318902]
[1763606657491,6.99986,142.86,142.83,4.12318902]
[1763606657695,1.68,142.85,142.83,4.12318902]
[1763606657897,1.68,142.85,142.83,4.80318902]
[1763606658316,8.68036614,142.85,142.83,0.68]
[1763606658507,4.78318902,142.84,142.81,50.0]
[1763606658706,4.78318902,142.84,142.78,4.80318902]
[1763606658916,4.12318902,142.83,142.78,4.80318902]
[1763606659121,1.68,142.82,142.78,4.80318902]
[1763606659497,1.68,142.82,142.79,4.80318902]
[1763606660214,7.00231076,142.81,142.79,4.80318902]
[1763606660518,1.68,142.82,142.8,4.83318902]
[1763606660693,1.68,142.82,142.81,4.12318902]
[1763606660896,1.68,142.82,142.81,0.71]
[1763606661096,1.68,142.82,142.81,4.83318902]
[1763606663924,18.12096,142.85,142.81,11.83549978]
[1763606664112,6.99937005,142.87,142.84,4.12318902]
[1763606664422,1.68,142.86,142.84,4.12318902]
[1763606664732,17.49469992,142.91,142.85,4.83318902]
[1763606664915,8.67790062,142.9,142.87,4.12318902]
[1763606665110,1.68,142.9,142.87,4.12318902]
[1763606665323,1.68,142.9,142.86,0.71]
[1763606665620,1.68,142.9,142.89,4.12318902]
[1763606666020,1.68,142.9,142.89,4.83318902]
[1763606666803,1.68,142.9,142.89,3.34624408]
[1763606669004,1.68,142.9,142.89,10.34463445]
[1763606669204,1.68,142.9,142.89,20.13346214]
[1763606673336,20.32008673,142.99,142.93,9.78882769]
[1763606673337,18.35384265,142.99,142.93,9.78882769]
[1763606673547,8.67440454,142.98,142.96,2.63624408]
[1763606673927,9.34440454,142.98,142.95,2.63624408]
[1763606674515,9.34440454,142.98,142.94,0.69]
[1763606674830,9.34440454,142.98,142.95,2.63624408]
[1763606676128,9.34440454,142.98,142.96,2.63624408]
[1763606676325,8.67440454,142.98,142.96,2.63624408]
[1763606676529,1.68,142.98,142.97,2.63624408]
[1763606676831,0.2,142.99,142.97,2.63624408]
[1763606677036,1.68,142.98,142.97,2.63624408]
[1763606677918,1.68,142.98,142.96,2.63624408]
[1763606678638,7.19353251,142.99,142.95,7.68530267]
[1763606678639,0.2,142.99,142.98,118.12096]
[1763606678936,0.2,142.99,142.98,2.63624408]
[1763606679129,0.2,142.99,142.98,3.32624408]
[1763606679714,0.2,142.99,142.98,0.69]
[1763606679911,0.2,142.99,142.98,3.32624408]
[1763606680237,0.2,142.99,142.98,10.32022925]
[1763606680427,0.2,142.99,142.98,120.10905694]
[1763606682333,0.2,143.0,142.99,9.78882769]
[1763606682545,0.2,143.0,142.99,13.11507177]
[1763606684325,0.2,143.0,142.99,2.63624408]
[1763606684644,0.2,143.0,142.99,0.69]
[1763606684835,0.2,143.0,142.99,3.32624408]
[1763606685347,0.2,143.0,142.99,13.11507177]
[1763606685520,0.2,143.0,142.99,63.11507177]
[1763606686420,0.2,143.0,142.99,20.10856781]
[1763606690341,0.2,143.03,143.02,9.78882769]
[1763606690540,0.2,143.03,143.02,12.42507177]
[1763606690840,0.2,143.03,143.02,13.08507177]
[1763606691742,0.2,143.03,143.02,20.07710085]
[1763606694651,0.2,143.03,143.02,19.41710085]
[1763606695655,0.2,143.03,143.02,20.07710085]
[1763606698228,0.2,143.03,143.02,12.42507177]
[1763606698447,0.2,143.03,143.02,19.41710085]
[1763606698958,0.2,143.03,143.02,20.07710085]
[1763606699759,0.2,143.03,143.02,19.41710085]
[1763606700469,0.2,143.03,143.02,20.07710085]
[1763606700761,0.2,143.03,143.02,19.41710085]
[1763606701055,0.2,143.03,143.02,20.07710085]
[1763606701767,0.89,143.03,143.02,9.78882769]
[1763606701974,10.51784566,143.03,142.97,50.0]
[1763606702136,3.32624408,143.02,142.97,52.63624408]
[1763606702457,3.32624408,143.02,142.97,59.63058407]
[1763606702458,10.31857496,143.02,142.97,59.63058407]
[1763606702664,0.69,143.01,142.97,59.63058407]
[1763606702858,1.68,143.0,142.97,59.63058407]
[1763606703048,1.68,143.0,142.99,2.63624408]
[1763606703243,0.2,143.03,143.02,59.78882769]
[1763606703447,1.88,143.03,143.02,62.42507177]
[1763606703755,1.88,143.03,143.02,63.08507177]
[1763606704764,1.88,143.03,143.02,70.07710085]
[1763606705652,0.2,143.04,143.03,77.90978769]
[1763606705854,0.2,143.04,143.03,81.16603177]
[1763606706660,0.2,143.04,143.03,88.157572]
[1763606707957,0.89,143.04,143.03,19.416612]
[1763606708359,0.89,143.04,143.02,52.63624408]
[1763606708563,2.37,143.03,143.02,62.42507177]
[1763606708783,2.37,143.03,143.02,2.63624408]
[1763606709063,0.69,143.03,143.02,9.62827316]
[1763606709359,0.2,143.04,143.02,9.62827316]
[1763606709574,0.2,143.04,143.03,2.63624408]
[1763606710355,0.89,143.04,143.02,50.0]
[1763606710555,0.89,143.04,143.03,2.63624408]
[1763606712045,0.2,143.04,143.02,56.99172547]
[1763606712245,0.2,143.04,143.03,2.63624408]
[1763606712864,0.2,143.04,143.03,9.62778431]
[1763606716948,20.75720408,143.1,143.03,9.62778431]
[1763606716949,0.69,143.11,143.06,50.0]
[1763606717150,0.69,143.11,143.1,2.63624408]
[1763606717461,3.32624408,143.11,143.05,50.0]
[1763606717773,2.63624408,143.1,143.05,50.0]
[1763606717969,3.32624408,143.1,143.05,50.0]
[1763606718270,0.69,143.09,143.05,50.0]
[1763606718584,1.68,143.08,143.05,50.0]
[1763606718769,1.68,143.08,143.05,56.99046851]
[1763606718987,2.37,143.08,143.05,56.99046851]
[1763606719550,1.68,143.08,143.06,2.63624408]
[1763606719762,0.69,143.07,143.05,56.99046851]
[1763606719965,0.69,143.07,143.05,59.62671259]
[1763606721386,0.69,143.07,143.05,52.63624408]
[1763606722273,0.69,143.07,143.05,59.62667685]
[1763606722667,0.69,143.07,143.03,50.0]
[1763606722874,10.31600233,143.07,143.03,50.0]
[1763606723266,10.31600233,143.07,143.01,52.63624408]
[1763606723267,7.66014182,143.06,143.01,52.63624408]
[1763606723482,7.66014182,143.06,143.01,59.62860745]
[1763606723787,0.67,143.05,143.01,59.62860745]
[1763606723971,1.68,143.04,143.01,59.62860745]
[1763606724359,0.67,143.03,143.02,2.63624408]
[1763606725889,1.68,143.04,143.02,2.63624408]
[1763606726264,2.35,143.04,143.02,2.63624408]
[1763606726786,2.35,143.04,143.02,4.11138148]
[1763606727192,2.35,143.04,143.02,11.10339105]
[1763606727400,2.37,143.04,143.02,11.10339105]
[1763606728008,0.69,143.03,142.99,59.78882769]
[1763606728187,0.69,143.03,142.97,61.10568486]
[1763606728188,4.80138148,143.03,142.97,61.10568486]
[1763606728392,4.11138148,143.01,142.95,63.90020917]
[1763606728596,4.11138148,142.99,142.95,50.0]
[1763606728982,0.69,142.98,142.95,50.0]
[1763606729369,7.68428728,142.98,142.95,50.0]
[1763606729775,0.69,142.97,142.95,50.0]
[1763606730074,1.68,142.96,142.95,50.0]
[1763606733123,6.98763189,143.11,143.0,50.0]
[1763606733298,6.98763189,143.11,142.97,50.0]
[1763606733299,4.80138148,143.01,142.95,50.0]
[1763606733616,5.79138148,143.0,142.96,9.78882769]
[1763606733821,13.47450473,143.0,142.96,9.78882769]
[1763606734125,0.69,142.99,142.96,9.78882769]
[1763606734412,0.69,142.99,142.96,16.78369649]
[1763606734610,0.69,142.99,142.96,20.89507797]
[1763606734802,1.68,143.0,142.98,4.11138148]
[1763606735485,1.68,143.0,142.99,63.90020917]
[1763606736007,1.68,143.0,142.99,70.89370521]
[1763606736485,1.68,143.0,142.99,121.51370521]
[1763606737394,1.68,143.0,142.99,71.51370521]
[1763606738305,6.99062492,143.05,142.99,71.51370521]
[1763606738306,0.69,143.07,143.02,9.78882769]
[1763606738504,1.68,143.04,143.03,4.11138148]
[1763606740292,1.68,143.04,143.03,70.8917494]
[1763606743020,1.68,143.04,143.03,66.78036792]
[1763606743314,1.68,143.04,143.03,70.8917494]
[1763606745614,0.69,143.1,143.06,50.0]
[1763606745801,1.68,143.09,143.07,4.11138148]
[1763606746127,1.68,143.09,143.06,50.0]
[1763606746310,1.68,143.09,143.06,54.11138148]
[1763606746311,2.37,143.09,143.06,54.11138148]
[1763606746709,1.68,143.09,143.06,54.11138148]
[1763606746912,0.69,143.08,143.06,54.11138148]
[1763606747096,2.37,143.09,143.06,54.11138148]
[1763606748119,2.37,143.09,143.06,61.10122341]
[1763606749119,0.69,143.08,143.06,61.10122341]
[1763606751304,0.69,143.08,143.07,4.11138148]
[1763606751520,1.68,143.09,143.07,4.11138148]
[1763606751711,2.36,143.09,143.07,4.11138148]
[1763606752597,0.68,143.08,143.06,50.0]
[1763606753120,0.68,143.08,143.04,50.0]
[1763606753323,6.98958551,143.07,143.04,54.11138148]
[1763606753525,1.68,143.06,143.04,54.11138148]
[1763606753715,2.36,143.06,143.04,54.11138148]
[1763606754105,2.36,143.06,143.04,4.11138148]
[1763606754724,2.36,143.06,143.02,50.0]
[1763606754725,0.68,143.05,143.02,50.0]
[1763606754926,0.68,143.05,143.02,4.11138148]
[1763606755426,6.99105145,143.04,143.01,4.11138148]
[1763606755601,1.68,143.03,143.02,4.11138148]
[1763606757007,2.36,143.03,143.02,4.11138148]
[1763606757837,1.68,143.03,143.02,4.11138148]
[1763606759721,2.36,143.03,143.02,4.11138148]
[1763606759920,1.68,143.03,143.02,4.11138148]
[1763606761654,2.36,143.03,143.02,4.11138148]
[1763606763148,2.36,143.03,143.0,56.99297345]
[1763606763149,2.36,143.03,143.01,4.11138148]
[1763606763310,1.68,143.03,143.01,4.11138148]
[1763606763509,1.68,143.03,143.0,50.0]
[1763606763510,7.67213476,143.02,143.0,50.0]
[1763606763910,7.67213476,143.02,142.97,17.48556656]
[1763606763911,0.68,143.01,142.97,54.11138148]
[1763606764109,1.68,143.0,142.97,50.0]
[1763606764317,1.68,143.0,142.97,54.11138148]
[1763606764541,2.36,143.0,142.98,4.11138148]
[1763606764735,1.68,143.0,142.98,4.11138148]
[1763606764950,0.68,142.99,142.98,4.11138148]
[1763606765328,2.36,143.0,142.98,4.11138148]
[1763606765544,0.68,142.99,142.97,54.11138148]
[1763606766638,7.67368873,142.99,142.96,4.11138148]
[1763606766937,4.11138148,142.97,142.93,50.0]
[1763606767145,2.36,142.96,142.93,50.0]
[1763606767448,6.47138148,142.96,142.92,3.65344285]
[1763606767735,7.67590546,142.95,142.91,54.11138148]
[1763606768113,0.68,142.94,142.91,50.0]
[1763606768316,1.68,142.93,142.91,50.0]
[1763606769022,0.68,142.92,142.91,50.0]
[1763606770335,1.68,142.95,142.94,59.78882769]
[1763606770635,1.68,142.95,142.94,63.90020917]
[1763606772741,1.68,142.95,142.94,59.78882769]
[1763606772962,1.68,142.95,142.94,63.90020917]
[1763606773449,0.68,143.01,142.96,50.0]
[1763606773738,0.68,143.01,142.95,9.78882769]
[1763606773739,1.68,143.0,142.95,9.78882769]
[1763606773944,5.79138148,143.0,142.95,13.90020917]
[1763606774236,5.79138148,143.0,142.92,54.11138148]
[1763606774237,4.11138148,142.97,142.92,54.11138148]
[1763606774439,1.68,142.96,142.92,54.11138148]
[1763606774636,2.36,142.96,142.92,54.11138148]
[1763606774839,7.67545295,142.95,142.92,50.0]
[1763606775029,0.68,142.95,142.92,54.11138148]
[1763606775220,4.79138148,142.94,142.9,50.0]
[1763606775433,1.68,142.93,142.89,4.11138148]
[1763606775644,2.36,142.93,142.89,4.11138148]
[1763606775841,0.68,142.92,142.89,4.11138148]
[1763606776544,7.67698237,142.92,142.88,50.0]
[1763606776739,7.67698237,142.92,142.89,4.11138148]
[1763606776946,0.68,142.95,142.91,4.11138148]
[1763606777143,1.68,142.94,142.92,4.11138148]
[1763606777740,2.36,142.94,142.92,4.11138148]
[1763606777943,2.36,142.94,142.91,4.11138148]
[1763606778142,0.68,142.93,142.9,4.11138148]
[1763606778339,6.99692135,142.92,142.9,4.11138148]
[1763606778538,1.68,142.91,142.9,4.11138148]
[1763606778729,1.68,142.91,142.88,106.99883287]
[1763606778937,1.68,142.91,142.9,4.11138148]
[1763606779945,1.68,142.91,142.88,50.0]
[1763606780153,1.68,142.91,142.9,4.11138148]
[1763606781838,1.68,142.91,142.9,63.90020917]
[1763606782042,2.39,142.91,142.89,6.99827065]
[1763606782248,2.39,142.91,142.88,50.0]
[1763606782249,1.68,142.91,142.88,50.0]
[1763606782443,1.68,142.91,142.9,4.11138148]
[1763606782749,1.68,142.91,142.9,10.92731339]
[1763606783249,2.39,142.91,142.88,50.0]
[1763606783453,2.39,142.91,142.9,10.92731339]
[1763606783824,9.38742668,142.91,142.87,13.44338501]
[1763606784024,7.70818276,142.9,142.86,61.02731339]
[1763606784246,7.70818276,142.9,142.86,50.1]
[1763606784552,0.71,142.89,142.86,61.02731339]
[1763606784735,1.68,142.88,142.86,61.02731339]
[1763606784940,1.68,142.88,142.87,10.92731339]
[1763606785135,2.39,142.88,142.87,10.92731339]
[1763606785344,1.68,142.88,142.87,10.92731339]
[1763606786154,1.68,142.89,142.88,59.78882769]
[1763606786460,1.68,142.89,142.88,70.71614108]
[1763606788734,1.68,142.89,142.88,66.85172896]
[1763606789446,1.68,142.89,142.88,74.47060913]
[1763606789749,1.68,142.89,142.88,73.85060913]
[1763606790143,1.68,142.89,142.88,66.85172896]
[1763606790759,1.68,142.89,142.88,73.85060913]
[1763606791446,0.69,142.95,142.9,50.0]
[1763606791646,2.37,142.94,142.91,7.06290127]
[1763606791959,0.69,142.93,142.9,57.06290127]
[1763606792754,0.69,142.93,142.9,64.06071003]
[1763606793152,0.69,142.93,142.9,7.06290127]
[1763606793344,1.68,142.92,142.9,7.06290127]
[1763606793970,2.37,142.92,142.9,7.06290127]
[1763606795054,1.68,142.92,142.91,7.06290127]
[1763606795243,2.37,142.92,142.9,7.06290127]
[1763606795445,2.37,142.92,142.9,16.85172896]
[1763606796943,1.68,142.92,142.91,66.85172896]
[1763606799055,18.12096,142.98,142.91,66.85172896]
[1763606799056,0.69,143.0,142.93,50.0]
[1763606799262,0.69,143.0,142.96,50.0]
[1763606799463,0.69,143.0,142.96,57.06290127]
[1763606799661,0.69,143.0,142.97,7.06290127]
[1763606800242,0.69,143.0,142.98,7.06290127]
[1763606800667,7.68314229,143.0,142.98,7.06290127]
[1763606801648,6.99314229,143.0,142.98,7.06290127]
[1763606801851,1.68,143.01,142.99,7.06290127]
[1763606802062,1.68,143.01,143.0,7.06290127]
[1763606802249,8.672518,143.01,142.99,7.06290127]
[1763606802568,0.69,143.0,142.99,7.06290127]
[1763606804748,30.06027658,143.1,142.99,7.06290127]
[1763606804749,0.69,143.02,142.99,9.62491685]
[1763606804955,0.69,143.02,143.01,2.63164973]
[1763606805157,2.37,143.02,143.01,2.63164973]
[1763606806164,1.68,143.02,143.01,2.63164973]
[1763606808257,2.37,143.02,143.01,2.63164973]
[1763606809650,2.37,143.02,142.98,50.0]
[1763606809876,0.69,143.01,142.98,2.63164973]
[1763606810175,0.69,143.01,142.97,12.42047742]
[1763606810672,0.69,143.01,142.96,50.0]
[1763606810975,6.99300699,143.0,142.96,52.63164973]
[1763606811176,1.68,142.99,142.96,52.63164973]
[1763606811353,2.36,142.99,142.96,2.63164973]
[1763606811574,0.68,142.98,142.95,9.62708907]
[1763606812475,0.68,142.98,142.95,2.63164973]
[1763606812655,0.68,142.98,142.94,2.63164973]
[1763606812968,6.99447436,142.97,142.94,2.63164973]
[1763606813179,1.68,142.96,142.94,2.63164973]
[1763606813476,2.36,142.96,142.94,2.63164973]
[1763606814473,2.36,142.96,142.95,2.63164973]
[1763606814671,1.68,142.96,142.95,2.63164973]
[1763606815074,2.36,142.96,142.95,2.63164973]
[1763606815654,1.68,142.96,142.95,2.63164973]
[1763606819067,2.36,142.96,142.95,2.63164973]
[1763606819273,1.68,142.96,142.95,2.63164973]
[1763606820283,1.68,142.96,142.95,9.62710268]
[1763606820878,1.68,142.96,142.94,6.99580909]
[1763606821081,1.68,142.96,142.95,2.63164973]
[1763606821465,1.68,142.96,142.94,2.63164973]
[1763606822586,1.68,142.96,142.95,2.63164973]
[1763606824559,2.36,142.96,142.95,2.63164973]
[1763606824782,2.36,142.96,142.94,2.63164973]
[1763606825776,1.68,142.96,142.94,2.63164973]
[1763606825966,1.68,142.96,142.95,2.63164973]
[1763606826163,1.68,142.96,142.94,6.99563735]
[1763606826478,2.36,142.96,142.95,2.63164973]
[1763606826669,2.36,142.96,142.94,2.63164973]
[1763606827354,0.68,142.95,142.9,50.0]
[1763606827560,2.63164973,142.94,142.89,2.63164973]
[1763606827755,8.67692077,142.93,142.89,2.63164973]
[1763606827980,9.35692077,142.93,142.89,2.63164973]
[1763606828185,0.68,142.92,142.89,2.63164973]
[1763606828492,2.63164973,142.91,142.86,52.73164973]
[1763606828679,1.68,142.9,142.87,2.63164973]
[1763606828988,1.68,142.9,142.86,52.73164973]
[1763606829200,0.68,142.89,142.86,52.73164973]
[1763606829391,6.99692077,142.93,142.87,2.63164973]
[1763606829592,40.82276151,143.03,142.87,2.63164973]
[1763606829593,0.68,143.01,142.96,100.0]
[1763606829782,1.68,143.0,142.94,56.99555266]
[1763606829961,4.31164973,143.0,142.95,12.42047742]
[1763606830167,4.31164973,143.0,142.97,2.63164973]
[1763606830168,0.68,142.99,142.97,2.63164973]
[1763606830569,1.68,143.0,142.97,50.0]
[1763606830879,1.68,143.0,142.99,7.05229259]
[1763606831792,1.68,143.0,142.97,50.0]
[1763606831793,2.36,143.0,142.98,7.05229259]
[1763606832098,0.68,142.99,142.95,16.84112028]
[1763606832681,0.68,142.99,142.95,7.05229259]
[1763606833667,0.68,142.99,142.94,50.0]
[1763606833668,7.73229259,142.99,142.94,50.0]
[1763606833870,14.046631,142.98,142.94,50.0]
[1763606834074,1.68,142.97,142.94,50.0]
[1763606834282,2.36,142.97,142.91,50.0]
[1763606834569,0.68,142.96,142.93,7.05229259]
[1763606834769,0.68,142.96,142.92,16.84112028]
[1763606835498,0.68,142.96,142.92,23.83787791]
[1763606837274,7.67500348,142.96,142.92,23.83787791]
[1763606838382,0.68,142.95,142.92,23.83787791]
[1763606838600,1.68,142.94,142.92,23.83787791]
[1763606839008,1.68,142.94,142.93,117.46112028]
[1763606839380,34.95257736,143.06,142.95,50.0]
[1763606839590,0.68,143.03,142.99,57.05229259]
[1763606840489,7.71229259,143.07,143.02,59.78882769]
[1763606840674,41.92579134,143.11,143.01,9.78882769]
[1763606840675,7.71229259,143.05,143.01,9.78882769]
[1763606841012,14.04411652,143.03,142.98,56.99397405]
[1763606841389,18.12096,143.07,143.0,7.05229259]
[1763606841390,17.47447722,143.07,143.0,7.05229259]
[1763606841581,0.66,143.08,143.04,66.84112028]
[1763606841788,1.5,143.07,143.04,66.84112028]
[1763606842073,0.66,143.06,143.04,50.0]
[1763606842404,0.66,143.06,143.02,59.78882769]
[1763606843119,6.99056274,143.05,143.02,50.0]
[1763606843272,7.65056274,143.05,143.02,50.0]
[1763606843693,1.68,143.04,143.02,50.0]
[1763606844171,0.66,143.03,143.02,50.0]
[1763606844379,1.68,143.04,143.02,50.0]
[1763606844583,2.34,143.04,143.02,50.0]
[1763606845412,1.68,143.04,143.02,50.0]
[1763606845913,0.66,143.03,143.0,59.78882769]
[1763606846411,6.989097,143.08,143.02,7.05229259]
[1763606846594,6.989097,143.08,143.0,66.78177055]
[1763606846595,2.39,143.07,143.03,57.05229259]
[1763606847406,2.39,143.07,143.03,64.04377493]
[1763606847715,2.39,143.07,143.03,64.66377493]
[1763606848289,8.66970956,143.07,143.03,50.0]
[1763606848494,7.76229259,143.06,143.01,50.0]
[1763606848701,7.76229259,143.06,143.01,57.05229259]
[1763606848897,0.71,143.05,143.01,60.90945274]
[1763606849106,1.68,143.04,143.01,67.90186769]
[1763606850906,8.67116628,143.04,143.01,50.0]
[1763606851217,8.67116628,143.04,143.01,60.90945274]
[1763606851432,0.71,143.1,143.03,10.90945274]
[1763606851709,1.68,143.09,143.06,50.0]
[1763606852086,2.39,143.09,143.06,50.0]
[1763606852506,10.90945274,143.13,143.09,9.78882769]
[1763606852696,7.18619435,143.14,143.08,50.0]
[1763606852697,10.90945274,143.1,143.08,50.0]
[1763606852895,10.90945274,143.1,143.06,56.99006232]
[1763606852896,1.68,143.09,143.06,56.99006232]
[1763606853095,2.39,143.09,143.06,50.0]
[1763606856811,1.68,143.09,143.06,67.89294943]
[1763606857004,2.39,143.09,143.06,67.89294943]
[1763606857212,2.39,143.09,143.06,56.9900086]
[1763606857412,2.39,143.09,143.06,67.89294943]
[1763606858504,9.37893803,143.09,143.06,50.0]
[1763606859618,8.66893803,143.09,143.06,50.0]
[1763606859818,8.66893803,143.09,143.05,9.78882769]
[1763606859819,7.69914012,143.08,143.04,60.90294083]
[1763606860005,10.90294083,143.07,143.04,50.0]
[1763606860204,1.68,143.06,143.02,50.0]
[1763606860419,2.39,143.06,143.02,50.0]
[1763606860628,0.71,143.05,143.02,50.0]
[1763606861022,1.68,143.06,143.04,10.90294083]
[1763606861214,1.68,143.06,143.03,21.31176852]
[1763606861726,1.68,143.06,143.04,68.51391075]
[1763606861922,1.68,143.06,143.05,9.78882769]
[1763606862313,28.37107606,143.12,143.07,9.78882769]
[1763606862521,2.39,143.11,143.07,9.78882769]
[1763606862726,13.29294083,143.11,143.07,9.78882769]
[1763606863120,20.28087584,143.11,143.07,9.78882769]
[1763606863304,0.71,143.1,143.07,9.78882769]
[1763606865721,7.69813535,143.1,143.07,9.78882769]
[1763606866113,8.66781724,143.11,143.07,16.77837837]
[1763606866309,1.68,143.11,143.09,9.78882769]
[1763606867123,1.68,143.11,143.09,20.69176852]
[1763606867317,1.68,143.11,143.09,9.78882769]
[1763606867714,1.68,143.11,143.09,16.77729739]
[1763606868435,0.2,143.14,143.11,59.78882769]
[1763606868628,1.88,143.14,143.13,70.69176852]
[1763606868828,2.59,143.14,143.11,50.0]
[1763606870316,2.59,143.14,143.05,5.55412217]
[1763606870317,10.90294083,143.12,143.07,50.0]
[1763606870525,0.71,143.13,143.07,50.0]
[1763606870526,12.58294083,143.11,143.07,50.0]
[1763606870834,2.39,143.11,143.07,67.89251958]
[1763606871912,2.39,143.11,143.08,20.69176852]
[1763606872113,1.68,143.11,143.08,20.69176852]
[1763606872734,6.98724931,143.12,143.08,20.69176852]
[1763606873026,1.68,143.1,143.08,21.31176852]
[1763606873332,1.68,143.1,143.08,27.68052243]
[1763606873537,1.68,143.1,143.08,16.7775816]
[1763606873721,7.18647359,143.14,143.1,9.78882769]
[1763606873921,1.68,143.13,143.1,9.78882769]
[1763606874245,2.39,143.13,143.1,9.78882769]
[1763606874534,2.39,143.13,143.06,50.0]
[1763606874535,10.90294083,143.11,143.06,50.0]
[1763606874722,12.58294083,143.1,143.06,50.0]
[1763606874925,4.11010293,143.09,143.06,50.0]
[1763606875112,4.82010293,143.09,143.06,50.0]
[1763606876040,11.80880436,143.09,143.06,50.0]
[1763606876222,0.71,143.09,143.06,56.98987932]
[1763606876425,8.66826052,143.1,143.06,56.98987932]
[1763606876635,9.37826052,143.1,143.06,56.98987932]
[1763606876826,9.37826052,143.1,143.06,67.89291028]
[1763606877236,9.37826052,143.1,143.06,56.98987932]
[1763606878162,10.90303096,143.08,143.04,50.0]
[1763606878441,2.39,143.07,143.04,50.0]
[1763606879024,2.39,143.07,143.03,16.78021072]
[1763606879025,0.71,143.06,143.03,9.78882769]
[1763606879219,0.71,143.06,143.02,50.0]
[1763606880040,7.7001901,143.06,143.02,56.99187381]
[1763606880422,0.71,143.06,143.02,56.99187381]
[1763606881814,1.68,143.07,143.03,20.69185865]
[1763606882038,0.71,143.07,143.03,16.77993773]
[1763606882237,1.68,143.06,143.03,16.77993773]
[1763606882644,2.39,143.06,143.03,16.77993773]
[1763606883332,2.39,143.06,143.03,9.78882769]
[1763606883843,1.68,143.06,143.03,28.30329173]
[1763606884144,2.39,143.06,143.03,16.78026077]
[1763606885753,2.39,143.06,143.03,27.68329173]
[1763606887251,1.68,143.06,143.05,10.90303096]
[1763606888130,1.68,143.06,143.05,17.8935937]
[1763606889052,1.68,143.06,143.05,27.68242139]
[1763606890148,17.46970509,143.11,143.09,50.0]
[1763606890149,1.68,143.11,143.09,50.0]
[1763606890443,1.68,143.11,143.1,20.69185865]
[1763606890673,1.68,143.11,143.1,21.31185865]
[1763606890829,1.88,143.14,143.13,59.78882769]
[1763606891022,1.88,143.14,143.13,120.69185865]
[1763606891340,1.88,143.14,143.13,121.31185865]
[1763606892148,1.88,143.14,143.13,128.29851413]
[1763606892947,1.88,143.14,143.13,78.29851413]
[1763606893139,1.88,143.14,143.13,77.67851413]
[1763606893645,1.88,143.14,143.13,66.77548317]
[1763606893848,2.59,143.14,143.11,50.0]
[1763606894021,2.59,143.14,143.09,56.9884513]
[1763606894022,0.71,143.13,143.09,56.9884513]
[1763606894225,7.6967328,143.13,143.1,9.78882769]
[1763606894425,0.71,143.12,143.1,9.78882769]
[1763606894652,1.88,143.14,143.1,27.6799422]
[1763606894850,0.71,143.13,143.1,27.6799422]
[1763606899954,0.71,143.04,143.01,50.0]
[1763606902461,0.71,143.04,143.01,67.89550961]
[1763606902834,0.71,143.04,143.0,16.78169112]
[1763606903035,0.71,143.04,143.0,27.68472208]
[1763606903249,1.68,143.05,143.02,10.90303096]